bitfinex/quotes_BTCUSD_20241002
["timestamp","ask_amount","ask_price","bid_price","bid_amount"]
[1727875952419,0.005,60975.0,60973.0,0.03292]
[1727875952664,0.02771747,60985.0,60973.0,0.0411079]
[1727875952665,0.005,60977.0,60973.0,0.0411079]
[1727875952938,0.24606501,60984.0,60973.0,0.0411079]
[1727875952939,0.001,60975.0,60974.0,0.164004]
[1727875953179,0.001,60975.0,60974.0,0.17546475]
[1727875953416,0.005,60981.0,60975.0,0.328002]
[1727875953650,0.005,60981.0,60976.0,0.00327932]
[1727875953901,0.005,60986.0,60976.0,0.25751248]
[1727875954168,0.005,60986.0,60982.0,0.32796]
[1727875954431,0.02571144,60983.0,60979.0,0.327981]
[1727875954688,0.02571144,60983.0,60977.0,0.327987]
[1727875954967,0.02571144,60983.0,60980.0,0.163987]
[1727875955226,0.02571144,60983.0,60982.0,0.163982]
[1727875955766,0.006,60986.0,60983.0,0.2237]
[1727875955767,0.001,60986.0,60983.0,0.2237]
[1727875956016,0.24606501,60996.0,60995.0,0.163947]
[1727875956277,0.067363,61021.0,61000.0,0.163934]
[1727875956278,0.01713265,61009.0,61000.0,0.163934]
[1727875956748,0.005,61012.0,61000.0,0.60606279]
[1727875957249,0.005,61012.0,61000.0,0.63898279]
[1727875959025,0.25270301,61008.0,61000.0,0.196854]
[1727875959560,0.001638,61008.0,61000.0,0.68901346]
[1727875959828,0.01713265,61027.0,61013.0,0.163899]
[1727875959829,0.24606501,61014.0,61013.0,0.163899]
[1727875960122,0.24770101,61021.0,61020.0,0.16388]
[1727875960579,0.001636,61021.0,61020.0,0.16715716]
[1727875960820,0.001636,61021.0,61020.0,0.16388]
[1727875961045,0.001636,61021.0,61014.0,0.327792]
[1727875961046,0.001636,61021.0,61015.0,0.03292]
[1727875961276,0.001636,61021.0,61014.0,0.327793]
[1727875961277,0.001636,61021.0,61019.0,0.03292]
[1727875962697,0.41694501,61020.0,61019.0,0.03292]
[1727875962913,0.005,61020.0,61019.0,0.03292]
[1727875963180,0.005,61020.0,61019.0,0.04132399]
[1727875963403,0.16888,61020.0,61019.0,0.04132399]
[1727875963838,0.003636,61021.0,61012.0,0.03292]
[1727875963839,0.005,61016.0,61012.0,0.03292]
[1727875964268,0.005,61016.0,61014.0,0.03292]
[1727875964485,0.168894,61015.0,61014.0,0.03292]
[1727875964704,0.168896,61014.0,61013.0,0.00844343]
[1727875964923,0.005,61004.0,61003.0,0.24606501]
[1727875965142,0.168923,61004.0,61003.0,0.24606501]
[1727875965373,0.168931,61001.0,61000.0,0.0814]
[1727875965598,0.005,60997.0,60996.0,0.24606501]
[1727875966040,0.005,60997.0,60991.0,0.327916]
[1727875966272,0.005,60996.0,60994.0,0.03292]
[1727875966716,0.005,60995.0,60994.0,0.19687]
[1727875966973,0.005,60995.0,60994.0,0.03292]
[1727875967197,0.005,60995.0,60993.0,0.03292]
[1727875967414,0.005,60994.0,60993.0,0.03292]
[1727875968089,0.005,60996.0,60994.0,0.014]
[1727875968319,0.005,60996.0,60995.0,0.03292]
[1727875968993,0.005,60996.0,60995.0,0.196867]
[1727875969209,0.005,60996.0,60995.0,0.03292]
[1727875969628,0.168945,60996.0,60995.0,0.03292]
[1727875969886,0.005,60987.0,60975.0,0.2194]
[1727875970153,0.005,60983.0,60978.0,0.163992]
[1727875970389,0.005,60980.0,60975.0,0.25232]
[1727875970632,0.005,60980.0,60979.0,0.16399]
[1727875971337,0.005,60990.0,60989.0,0.163962]
[1727875971569,0.24606501,60993.0,60977.0,0.03292]
[1727875971783,0.24606501,60993.0,60991.0,0.163958]
[1727875971784,0.005,60992.0,60991.0,0.163958]
[1727875972015,0.002,60997.0,60981.0,0.24606501]
[1727875972225,0.005,60998.0,60997.0,0.163939]
[1727875972444,0.005,60996.0,60989.0,0.327926]
[1727875972661,0.005,60996.0,60995.0,0.163947]
[1727875973311,0.005,60996.0,60992.0,0.327908]
[1727875973312,0.005,60996.0,60994.0,0.16395]
[1727875973517,0.005,60996.0,60991.0,0.360832]
[1727875973731,0.005,60998.0,60989.0,0.57399101]
[1727875973941,0.005,60998.0,60993.0,0.327905]
[1727875974188,0.005,60998.0,60996.0,0.163944]
[1727875974399,0.005,61002.0,60999.0,0.163935]
[1727875974625,0.005,61000.0,60995.0,0.163947]
[1727875974835,0.005,61001.0,60993.0,0.327902]
[1727875975063,0.005,61001.0,60989.0,0.25606501]
[1727875975064,0.007,61007.0,61000.0,0.327867]
[1727875975278,0.57387301,61012.0,60997.0,0.0752]
[1727875975279,0.24606501,61012.0,61009.0,0.163907]
[1727875975502,0.25106501,61012.0,61006.0,0.03292]
[1727875975710,0.005,61012.0,61008.0,0.163911]
[1727875975949,0.007,61018.0,61011.0,0.163903]
[1727875976158,0.005,61012.0,61009.0,0.03292]
[1727875976383,0.005,61012.0,61005.0,0.163919]
[1727875976600,0.005,61012.0,61005.0,0.24606501]
[1727875976819,0.16391,61010.0,61005.0,0.24606501]
[1727875977036,0.16391,61010.0,60998.0,0.73863346]
[1727875977037,0.005,61012.0,60998.0,0.41075946]
[1727875977308,0.005,61012.0,61005.0,0.19684]
[1727875977525,0.005,61011.0,61009.0,0.009]
[1727875977973,0.005,61012.0,61010.0,0.00845246]
[1727875978181,0.005,61016.0,61011.0,0.327807]
[1727875978434,0.005,61013.0,61012.0,0.163901]
[1727875978673,0.005,61013.0,61012.0,0.00843931]
[1727875978871,0.005,61013.0,61012.0,0.17234131]
[1727875979079,0.40994901,61019.0,61005.0,0.327836]
[1727875979080,0.005,61014.0,61006.0,0.03292]
[1727875979291,0.005,61013.0,61012.0,0.00843931]
[1727875979498,0.005,61013.0,61011.0,0.04092]
[1727875979709,0.005,61012.0,61011.0,0.171902]
[1727875979919,0.005,61012.0,61011.0,0.008]
[1727875980132,0.005,61012.0,61011.0,0.171904]
[1727875980347,0.005,61012.0,61011.0,0.008]
[1727875980562,0.168902,61012.0,61011.0,0.008]
[1727875981449,0.005,61012.0,61011.0,0.008]
[1727875981677,0.168902,61012.0,61011.0,0.008]
[1727875982427,0.170902,61012.0,61011.0,0.008]
[1727875982655,0.41439723,61012.0,61011.0,0.008]
[1727875983104,0.29660138,61012.0,61011.0,0.008]
[1727875983322,0.29660138,61012.0,60999.0,0.24606501]
[1727875983323,0.268934,61000.0,60999.0,0.24606501]
[1727875983544,0.270934,61000.0,60999.0,0.24606501]
[1727875983790,0.170961,60990.0,60989.0,0.24606501]
[1727875984023,0.270961,60990.0,60989.0,0.24606501]
[1727875984238,0.268982,60982.0,60979.0,0.000818]
[1727875984744,0.270982,60982.0,60979.0,0.000818]
[1727875985016,0.270988,60980.0,60979.0,0.000818]
[1727875986570,0.270988,60980.0,60969.0,0.24688401]
[1727875986571,0.171015,60970.0,60969.0,0.000819]
[1727875986785,0.271015,60970.0,60969.0,0.000819]
[1727875987667,0.169015,60970.0,60969.0,0.000819]
[1727875987885,0.169015,60970.0,60969.0,0.003819]
[1727875989674,0.005,60970.0,60969.0,0.003819]
[1727875990383,0.005,60970.0,60969.0,0.000819]
[1727875990631,0.328008,60975.0,60969.0,0.000819]
[1727875990632,0.005,60972.0,60971.0,0.164012]
[1727875990841,0.327982,60979.0,60971.0,0.164011]
[1727875990842,0.005,60976.0,60971.0,0.164011]
[1727875991069,0.005,60980.0,60972.0,0.00327965]
[1727875991282,0.327967,60982.0,60972.0,0.00327965]
[1727875991497,0.25106501,60984.0,60973.0,0.328012]
[1727875991498,0.005,60980.0,60973.0,0.328012]
[1727875991723,0.005,60980.0,60974.0,0.00327948]
[1727875991933,0.005,60980.0,60975.0,0.164]
[1727875992169,0.005,60980.0,60971.0,0.332023]
[1727875992170,0.24606501,60977.0,60971.0,0.004]
[1727875992394,0.169004,60974.0,60972.0,0.03292]
[1727875992607,0.169007,60973.0,60972.0,0.03292]
[1727875993077,0.269009,60972.0,60971.0,0.004]
[1727875993302,0.3535092,60972.0,60971.0,0.004]
[1727875993761,0.271009,60972.0,60971.0,0.004]
[1727875993995,0.271015,60970.0,60959.0,0.98160035]
[1727875995518,0.278015,60970.0,60969.0,0.001819]
[1727875995952,0.30373457,60970.0,60969.0,0.001819]
[1727875997501,0.20373457,60970.0,60969.0,0.001819]
[1727875998011,0.20173457,60970.0,60969.0,0.001819]
[1727875998445,0.44979958,60970.0,60969.0,0.001819]
[1727875998660,0.28251193,60970.0,60969.0,0.000819]
[1727875998900,0.38251193,60970.0,60969.0,0.000819]
[1727875999111,0.38251193,60970.0,60969.0,0.004819]
[1727875999730,0.29673457,60970.0,60969.0,0.004819]
[1727876000773,0.29673457,60970.0,60969.0,0.088019]
[1727876000774,0.02571957,60970.0,60969.0,0.088019]
[1727876000985,0.02571957,60970.0,60969.0,0.252036]
[1727876001199,0.02571957,60970.0,60969.0,0.284956]
[1727876001409,0.005,60975.0,60974.0,0.164004]
[1727876001625,0.24606501,60978.0,60971.0,0.328019]
[1727876001626,0.005,60976.0,60973.0,0.328013]
[1727876001840,0.005,60978.0,60970.0,0.360948]
[1727876002060,0.005,60974.0,60970.0,0.196934]
[1727876002281,0.005,60974.0,60970.0,0.03292]
[1727876002502,0.24770101,60979.0,60970.0,0.03292]
[1727876002503,0.169012,60971.0,60970.0,0.03292]
[1727876002962,0.271015,60970.0,60969.0,0.000819]
[1727876004074,0.51708001,60970.0,60969.0,0.000819]
[1727876004295,0.166039,60961.0,60960.0,0.24606501]
[1727876004516,0.271039,60961.0,60960.0,0.24606501]
[1727876004964,0.271039,60961.0,60959.0,0.98160035]
[1727876004965,0.271041,60960.0,60959.0,0.98160035]
[1727876006527,0.29676527,60960.0,60959.0,0.98160035]
[1727876007490,0.31389792,60960.0,60959.0,0.98160035]
[1727876008243,0.31389792,60960.0,60959.0,0.98260035]
[1727876008244,0.44570981,60960.0,60959.0,0.98260035]
[1727876008485,0.31389792,60960.0,60959.0,0.98160035]
[1727876008943,0.31389792,60960.0,60959.0,0.98260035]
[1727876008944,0.31589792,60960.0,60959.0,0.98260035]
[1727876009176,0.31389792,60960.0,60959.0,0.98160035]
[1727876009434,0.31389792,60960.0,60959.0,0.85036435]
[1727876009435,0.56196293,60960.0,60959.0,0.85036435]
[1727876009702,0.56177974,60960.0,60959.0,0.50335535]
[1727876009963,0.53405547,60960.0,60959.0,0.29331035]
[1727876010480,0.53205547,60960.0,60959.0,0.29331035]
[1727876010733,0.53605547,60960.0,60959.0,0.29331035]
[1727876010992,0.53805547,60960.0,60959.0,0.19588335]
[1727876011249,0.53805547,60960.0,60959.0,0.12926535]
[1727876011250,0.53405547,60960.0,60959.0,0.12926535]
[1727876011507,0.53605547,60960.0,60959.0,0.13026535]
[1727876011739,0.37117365,60960.0,60959.0,0.13026535]
[1727876011980,0.53823866,60960.0,60959.0,0.09745635]
[1727876012266,0.29217365,60960.0,60959.0,3.5e-07]
[1727876012767,0.317902,60960.0,60959.0,3.5e-07]
[1727876013244,0.315902,60960.0,60959.0,3.5e-07]
[1727876013701,0.35149776,60960.0,60959.0,0.00081835]
[1727876013931,0.315902,60960.0,60959.0,0.00081835]
[1727876014968,0.215902,60960.0,60959.0,0.00081835]
[1727876016322,0.213902,60960.0,60959.0,0.000818]
[1727876016541,0.047861,60960.0,60959.0,0.000818]
[1727876016762,0.211902,60960.0,60959.0,0.000818]
[1727876016985,0.19476935,60960.0,60959.0,0.000818]
[1727876017881,0.20476935,60960.0,60959.0,0.000818]
[1727876018113,0.19476935,60960.0,60959.0,0.000818]
[1727876018346,0.005,60960.0,60959.0,0.000818]
[1727876018566,0.005,60960.0,60959.0,0.157918]
[1727876018788,0.169041,60960.0,60959.0,0.157918]
[1727876019236,0.171041,60960.0,60959.0,0.157918]
[1727876019516,0.271041,60960.0,60959.0,0.000818]
[1727876020462,0.31916428,60960.0,60959.0,0.004818]
[1727876020709,0.31916428,60960.0,60946.0,0.24606501]
[1727876020710,0.171076,60947.0,60946.0,0.24606501]
[1727876020939,0.271076,60947.0,60946.0,0.24606501]
[1727876021422,0.166095,60940.0,60934.0,0.000819]
[1727876021641,0.171095,60940.0,60934.0,0.000819]
[1727876022569,0.271095,60940.0,60934.0,0.000819]
[1727876022808,0.45489825,60940.0,60934.0,0.000819]
[1727876023282,0.29682935,60940.0,60934.0,0.000819]
[1727876023934,0.30082935,60940.0,60934.0,0.000819]
[1727876024154,0.19682935,60940.0,60935.0,0.1541]
[1727876024619,0.21082935,60940.0,60935.0,0.1541]
[1727876024832,0.19682935,60940.0,60935.0,0.1541]
[1727876025064,0.21082935,60940.0,60935.0,0.1541]
[1727876025547,0.19682935,60940.0,60935.0,0.1541]
[1727876025776,0.19682935,60940.0,60934.0,0.000819]
[1727876025777,0.20182935,60940.0,60934.0,0.000819]
[1727876025997,0.30182935,60940.0,60934.0,0.000819]
[1727876027147,0.007,60935.0,60934.0,0.000819]
[1727876027371,0.007,60935.0,60932.0,0.001634]
[1727876027372,0.271114,60933.0,60932.0,0.001634]
[1727876027853,0.171152,60919.0,60918.0,1e-06]
[1727876028086,0.271152,60919.0,60918.0,1e-06]
[1727876028752,0.29689304,60919.0,60918.0,1e-06]
[1727876031747,0.03074104,60919.0,60918.0,1e-06]
[1727876031970,0.19489304,60919.0,60918.0,1e-06]
[1727876032204,0.33236724,60919.0,60918.0,1e-06]
[1727876032434,0.33536724,60919.0,60918.0,1e-06]
[1727876032884,0.33436724,60919.0,60918.0,1e-06]
[1727876033108,0.33836724,60919.0,60918.0,1e-06]
[1727876033333,0.30089304,60919.0,60918.0,1e-06]
[1727876033575,0.29689304,60919.0,60918.0,1e-06]
[1727876035367,0.30089304,60919.0,60918.0,1e-06]
[1727876035801,0.29689304,60919.0,60918.0,1e-06]
[1727876036046,0.29789304,60919.0,60918.0,1e-06]
[1727876036258,0.29689304,60919.0,60918.0,1e-06]
[1727876038049,0.271152,60919.0,60918.0,1e-06]
[1727876038701,0.272152,60919.0,60918.0,1e-06]
[1727876040057,0.29689429,60919.0,60918.0,1e-06]
[1727876040504,0.30089429,60919.0,60918.0,1e-06]
[1727876041433,0.29889429,60919.0,60918.0,1e-06]
[1727876042576,0.30089429,60919.0,60918.0,1e-06]
[1727876042809,0.29689429,60919.0,60918.0,1e-06]
[1727876043258,0.45138948,60919.0,60918.0,1e-06]
[1727876043717,0.46138948,60919.0,60918.0,1e-06]
[1727876044163,0.46338948,60919.0,60918.0,1e-06]
[1727876044383,0.53848948,60919.0,60918.0,1e-06]
[1727876044625,0.56348948,60919.0,60918.0,1e-06]
[1727876044872,0.56348948,60919.0,60908.0,0.000818]
[1727876044873,0.271179,60909.0,60908.0,0.000818]
[1727876045423,0.328347,60911.0,60901.0,0.0002]
[1727876045424,0.273198,60902.0,60901.0,0.0002]
[1727876045704,0.273198,60902.0,60887.0,0.24606501]
[1727876045705,0.271219,60894.0,60887.0,0.24606501]
[1727876047194,0.271219,60894.0,60881.0,0.0002]
[1727876047864,0.271219,60894.0,60881.0,0.24626501]
[1727876048089,0.28835165,60894.0,60881.0,0.24626501]
[1727876048546,0.31410467,60894.0,60881.0,0.24626501]
[1727876049240,0.31410467,60894.0,60890.0,9e-07]
[1727876049241,0.171227,60891.0,60890.0,9e-07]
[1727876049459,0.294227,60891.0,60890.0,9e-07]
[1727876050350,0.33648959,60891.0,60890.0,9e-07]
[1727876050577,1.20137141,60891.0,60890.0,9e-07]
[1727876050829,0.294252,60882.0,60881.0,0.0002]
[1727876051526,0.32001366,60882.0,60881.0,0.0002]
[1727876052721,0.73984094,60882.0,60881.0,0.0002]
[1727876052948,0.19701366,60882.0,60881.0,0.0002]
[1727876053852,0.03076166,60882.0,60881.0,0.0002]
[1727876054071,0.29683653,60882.0,60881.0,0.0002]
[1727876054294,0.29501366,60882.0,60881.0,0.0002]
[1727876054771,0.19501366,60882.0,60881.0,0.0002]
[1727876054988,0.03076166,60882.0,60881.0,0.0002]
[1727876055226,0.19501366,60882.0,60881.0,0.0002]
[1727876055445,0.19701366,60882.0,60881.0,0.0002]
[1727876055683,0.30702033,60882.0,60881.0,0.0002]
[1727876055919,0.40702033,60882.0,60881.0,0.0002]
[1727876056155,0.29701366,60882.0,60881.0,0.0002]
[1727876056855,0.29701366,60882.0,60878.0,0.000818]
[1727876056856,0.16926,60879.0,60878.0,0.000818]
[1727876057072,0.27126,60879.0,60878.0,0.000818]
[1727876057293,0.396938,60879.0,60878.0,0.000818]
[1727876058209,0.396938,60879.0,60878.0,1e-06]
[1727876058210,0.419938,60879.0,60878.0,1e-06]
[1727876058432,2.01824106,60879.0,60878.0,1e-06]
[1727876058653,1.971938,60879.0,60878.0,1e-06]
[1727876059164,1.985938,60879.0,60878.0,1e-06]
[1727876059383,0.171298,60865.0,60861.0,0.0002]
[1727876059608,0.271298,60865.0,60861.0,0.0002]
[1727876059827,0.171306,60862.0,60861.0,0.0002]
[1727876060056,0.271306,60862.0,60861.0,0.0002]
[1727876060740,0.24606501,60895.0,60861.0,0.0002]
[1727876060741,0.0397638,60879.0,60862.0,0.2351]
[1727876060975,0.26006501,60879.0,60872.0,0.164277]
[1727876061215,0.26006501,60879.0,60868.0,0.1521]
[1727876061216,0.065865,60890.0,60878.0,0.24606501]
[1727876061435,0.002,60917.0,60878.0,0.24606501]
[1727876061436,0.26295854,60903.0,60893.0,0.083]
[1727876061909,0.01689353,60903.0,60894.0,0.23606501]
[1727876062342,0.01689353,60903.0,60897.0,0.328421]
[1727876062566,0.01689353,60903.0,60902.0,0.325398]
[1727876062802,0.01689353,60903.0,60902.0,0.1612]
[1727876063021,0.492502,60914.0,60902.0,0.1612]
[1727876063247,0.003,60903.0,60902.0,0.1612]
[1727876063467,0.328303,60920.0,60902.0,0.1612]
[1727876063679,0.24606501,60919.0,60902.0,0.1612]
[1727876063921,0.24606501,60922.0,60902.0,0.1612]
[1727876064159,0.328314,60918.0,60902.0,0.1612]
[1727876064382,0.44282728,60920.0,60905.0,0.24606501]
[1727876064602,0.44282728,60920.0,60902.0,0.1612]
[1727876064831,0.164163,60915.0,60906.0,0.24606501]
[1727876065055,0.164169,60913.0,60906.0,0.24606501]
[1727876065280,0.328327,60915.0,60906.0,0.24606501]
[1727876065737,0.07711543,60915.0,60902.0,0.1612]
[1727876065961,0.35408294,60913.0,60905.0,0.24606501]
[1727876066181,0.02574394,60913.0,60905.0,0.24606501]
[1727876066394,0.1,60910.0,60905.0,0.24606501]
[1727876066612,0.264176,60910.0,60905.0,0.24606501]
[1727876067047,0.264176,60910.0,60902.0,0.1612]
[1727876067263,0.1,60911.0,60902.0,0.1612]
[1727876067482,0.18991394,60913.0,60902.0,0.1612]
[1727876067483,0.12574394,60913.0,60905.0,0.24606501]
[1727876067725,0.12574394,60913.0,60905.0,0.164188]
[1727876067983,0.12574394,60913.0,60902.0,0.483193]
[1727876067984,0.02574394,60913.0,60912.0,0.164171]
[1727876068225,0.02574394,60913.0,60912.0,0.197091]
[1727876068437,0.41019101,60929.0,60918.0,0.164154]
[1727876068701,0.41019101,60929.0,60911.0,0.00328291]
[1727876068702,0.164111,60935.0,60924.0,0.164137]
[1727876068915,0.3282,60939.0,60919.0,0.00328297]
[1727876069148,0.24606501,60948.0,60925.0,0.24606501]
[1727876069361,0.164092,60942.0,60926.0,0.00328224]
[1727876069582,0.24606501,60948.0,60933.0,0.164112]
[1727876069583,0.164085,60944.0,60933.0,0.164112]
[1727876069807,0.164078,60947.0,60934.0,0.328222]
[1727876070027,0.328139,60950.0,60927.0,0.03292]
[1727876070256,0.164078,60947.0,60934.0,0.164109]
[1727876070494,0.164078,60947.0,60933.0,0.328228]
[1727876070495,0.32812,60954.0,60939.0,0.164098]
[1727876070718,0.065789,60962.0,60939.0,0.164098]
[1727876070958,0.24606501,60965.0,60939.0,0.241198]
[1727876071173,0.24606501,60965.0,60939.0,0.24179445]
[1727876071397,0.24606501,60957.0,60948.0,0.03292]
[1727876071646,0.24606501,60955.0,60940.0,0.1805]
[1727876071860,0.32808,60961.0,60941.0,0.24606501]
[1727876072103,0.164044,60959.0,60946.0,0.164078]
[1727876072334,0.32809,60959.0,60942.0,0.164088]
[1727876072546,0.164053,60956.0,60948.0,0.24606501]
[1727876072996,0.02572456,60955.0,60948.0,0.24606501]
[1727876073444,0.02572456,60955.0,60941.0,0.24606501]
[1727876073667,0.164059,60954.0,60941.0,0.24606501]
[1727876073888,0.164059,60954.0,60942.0,0.164089]
[1727876074111,0.164059,60954.0,60941.0,0.24606501]
[1727876074112,0.09459796,60954.0,60941.0,0.24606501]
[1727876074400,0.164068,60951.0,60941.0,0.24606501]
[1727876074629,0.35383656,60955.0,60942.0,0.001]
[1727876074630,0.264087,60943.0,60942.0,0.001]
[1727876075090,0.264114,60933.0,60932.0,0.24606501]
[1727876075568,0.32824,60932.0,60919.0,0.0831]
[1727876075794,0.164124,60930.0,60919.0,0.0831]
[1727876076022,0.164124,60930.0,60919.0,0.247251]
[1727876076023,0.1,60930.0,60919.0,0.247251]
[1727876076254,0.1,60930.0,60926.0,0.00328256]
[1727876076489,0.1,60937.0,60926.0,0.00328256]
[1727876076706,0.001638,60940.0,60927.0,0.00328212]
[1727876076930,0.001638,60940.0,60933.0,0.164113]
[1727876077156,0.02573039,60937.0,60931.0,0.328239]
[1727876077402,0.02573039,60937.0,60926.0,0.023]
[1727876077403,0.02573039,60937.0,60932.0,0.24606501]
[1727876077626,0.02573039,60937.0,60933.0,0.1512]
[1727876077853,0.18983439,60937.0,60933.0,0.1512]
[1727876078075,0.328213,60936.0,60933.0,0.1512]
[1727876078274,0.39659084,60936.0,60926.0,0.24606501]
[1727876078546,0.02573039,60937.0,60930.0,0.24606501]
[1727876078547,0.02673039,60937.0,60930.0,0.24606501]
[1727876078992,0.02673039,60937.0,60923.0,0.24606501]
[1727876078993,0.328242,60931.0,60923.0,0.24606501]
[1727876079222,0.02673039,60937.0,60930.0,0.24606501]
[1727876079223,0.328221,60935.0,60930.0,0.24606501]
[1727876079479,0.02673039,60937.0,60922.0,0.1605]
[1727876079480,0.328234,60933.0,60922.0,0.1605]
[1727876079712,0.02573374,60934.0,60925.0,0.24606501]
[1727876079942,0.16412,60931.0,60925.0,0.24606501]
[1727876080207,0.164141,60924.0,60923.0,0.24606501]
[1727876080451,0.164138,60924.0,60923.0,0.24606501]
[1727876080658,0.02573374,60934.0,60922.0,0.1605]
[1727876080881,0.1,60935.0,60922.0,0.1605]
[1727876081102,0.1,60935.0,60923.0,0.24606501]
[1727876081103,0.02573566,60924.0,60923.0,0.24606501]
[1727876081329,0.164141,60923.0,60922.0,0.1605]
[1727876081547,0.164149,60921.0,60915.0,0.24606501]
[1727876081765,0.02573602,60924.0,60915.0,0.24606501]
[1727876081997,0.02573602,60924.0,60917.0,0.164156]
[1727876082221,0.02573602,60924.0,60917.0,0.164157]
[1727876082447,0.02573602,60924.0,60919.0,0.164151]
[1727876082675,0.02573602,60924.0,60915.0,0.24606501]
[1727876082676,0.02573602,60924.0,60922.0,0.41020801]
[1727876082912,0.02573602,60924.0,60915.0,0.24606501]
[1727876082913,0.02573602,60924.0,60923.0,0.43320601]
[1727876083173,0.001,60934.0,60931.0,0.164118]
[1727876083404,0.001638,60940.0,60924.0,0.023]
[1727876083660,0.001638,60940.0,60929.0,0.328249]
[1727876083923,0.329833,60940.0,60928.0,0.328253]
[1727876084154,0.001638,60940.0,60930.0,0.24606501]
[1727876084367,0.001,60934.0,60932.0,0.164116]
[1727876084640,0.001,60934.0,60931.0,0.174119]
[1727876084862,0.001,60934.0,60931.0,0.01]
[1727876085093,0.164117,60932.0,60931.0,0.01]
[1727876086220,0.164116,60933.0,60931.0,0.01]
[1727876086459,0.001,60934.0,60931.0,0.01]
[1727876086919,0.001,60934.0,60929.0,0.16740612]
[1727876086920,0.164112,60934.0,60929.0,0.00328212]
[1727876087152,0.328214,60936.0,60925.0,0.405569]
[1727876087401,0.164138,60924.0,60916.0,0.08]
[1727876087618,0.264138,60924.0,60923.0,0.24606501]
[1727876087839,0.328302,60920.0,60911.0,0.1592]
[1727876088060,0.1,60923.0,60918.0,0.24606501]
[1727876088292,0.164167,60914.0,60911.0,0.1592]
[1727876088523,0.164171,60912.0,60911.0,0.1592]
[1727876088744,0.164175,60911.0,60909.0,0.24606501]
[1727876088958,0.1,60923.0,60911.0,0.005]
[1727876089176,0.24606501,60928.0,60907.0,0.164183]
[1727876089177,0.164167,60914.0,60907.0,0.164183]
[1727876089407,0.1,60928.0,60902.0,0.57446001]
[1727876089408,0.02574192,60911.0,60902.0,0.24606501]
[1727876089641,0.1,60911.0,60902.0,0.24606501]
[1727876089873,0.02574231,60909.0,60903.0,0.33166952]
[1727876090120,0.02574231,60909.0,60902.0,0.24606501]
[1727876090340,0.02574231,60909.0,60908.0,0.164182]
[1727876090800,0.02574231,60909.0,60900.0,0.1539]
[1727876091091,0.164193,60904.0,60902.0,0.24606501]
[1727876091300,0.328376,60906.0,60902.0,0.24606501]
[1727876091519,0.16419,60905.0,60900.0,0.318102]
[1727876091739,0.328364,60908.0,60900.0,0.1539]
[1727876092004,0.02574231,60909.0,60900.0,0.1539]
[1727876092232,0.02574231,60909.0,60906.0,0.164184]
[1727876092445,0.02574231,60909.0,60890.0,0.40606501]
[1727876092446,0.328416,60899.0,60890.0,0.40606501]
[1727876092687,0.328391,60903.0,60898.0,0.24606501]
[1727876092926,0.001,60906.0,60902.0,0.014]
[1727876093182,0.02574563,60902.0,60901.0,0.1642]
[1727876094173,0.02574563,60902.0,60901.0,0.1872]
[1727876094443,0.24606501,60919.0,60902.0,0.023]
[1727876094707,0.328311,60918.0,60902.0,0.023]
[1727876094928,0.328273,60925.0,60909.0,0.11262]
[1727876095163,0.24606501,60935.0,60914.0,0.24606501]
[1727876095382,0.24606501,60935.0,60911.0,0.1599]
[1727876095383,0.57428801,60935.0,60915.0,0.023]
[1727876095612,0.001638,60940.0,60915.0,0.023]
[1727876095613,0.001638,60940.0,60916.0,0.1]
[1727876095828,0.328225,60934.0,60917.0,0.023]
[1727876096057,0.001638,60940.0,60917.0,0.023]
[1727876096058,0.001638,60940.0,60926.0,0.328266]
[1727876096284,0.001638,60940.0,60924.0,0.328277]
[1727876096285,0.328207,60938.0,60924.0,0.328277]
[1727876096510,0.328207,60938.0,60921.0,0.24606501]
[1727876096511,0.328216,60936.0,60925.0,0.328267]
[1727876096733,0.328216,60936.0,60928.0,0.24606501]
[1727876096734,0.164112,60934.0,60928.0,0.24606501]
[1727876096966,0.164112,60934.0,60929.0,0.164124]
[1727876097189,0.1,60942.0,60922.0,0.164144]
[1727876097426,0.164123,60930.0,60925.0,0.164135]
[1727876097884,0.329213,60936.0,60925.0,0.006]
[1727876098108,0.001,60936.0,60925.0,0.006]
[1727876098849,0.164129,60928.0,60925.0,0.006]
[1727876099075,0.164122,60930.0,60925.0,0.170134]
[1727876099306,0.001,60936.0,60935.0,0.164109]
[1727876099519,0.001,60936.0,60934.0,0.16411]
[1727876099746,0.001,60936.0,60935.0,0.164109]
[1727876099983,0.001,60936.0,60935.0,0.63985628]
[1727876100212,0.001,60936.0,60935.0,0.60693628]
[1727876100436,0.328069,60963.0,60940.0,0.328188]
[1727876100671,0.328069,60963.0,60926.0,0.2395]
[1727876100672,0.24606501,60951.0,60926.0,0.2395]
[1727876100900,0.001638,60932.0,60931.0,0.16412]
[1727876101658,0.001638,60932.0,60926.0,0.1622]
[1727876101912,0.164136,60925.0,60920.0,0.164148]
[1727876102188,0.164136,60925.0,60914.0,0.1552]
[1727876102415,0.264136,60925.0,60921.0,0.24606501]
[1727876103102,0.264136,60925.0,60913.0,0.41023201]
[1727876103328,0.264136,60925.0,60913.0,0.24606501]
[1727876103813,0.264136,60925.0,60913.0,0.41023201]
[1727876104041,0.328261,60928.0,60916.0,0.03292]
[1727876104257,0.328261,60928.0,60913.0,0.24606501]
[1727876104258,0.164136,60925.0,60917.0,0.164156]
[1727876104496,0.002638,60932.0,60924.0,0.163819]
[1727876104708,0.002638,60932.0,60931.0,0.16412]
[1727876104939,0.002638,60932.0,60930.0,0.164122]
[1727876105170,0.164121,60931.0,60927.0,0.164129]
[1727876105386,0.164123,60930.0,60926.0,0.164133]
[1727876105604,0.164123,60930.0,60924.0,0.000819]
[1727876105605,0.164136,60925.0,60924.0,0.000819]
[1727876106062,0.18987067,60925.0,60924.0,0.000819]